bitfinex-derivatives/quotes_SOLF0:USTF0_20251023
["timestamp","ask_amount","ask_price","bid_price","bid_amount"]
[1761238027963,45.1637168,191.5,191.47,4.6991]
[1761238028168,45.1637168,191.5,191.48,2.81]
[1761238029065,0.97,191.49,191.47,4.6991]
[1761238029270,0.97,191.49,191.45,7.5097]
[1761238029567,0.97,191.48,191.44,2.81]
[1761238029768,43.42,191.5,191.41,4.7007]
[1761238029769,0.97,191.46,191.41,4.7007]
[1761238029968,2.7137168,191.45,191.41,7.5107]
[1761238030569,43.42,191.46,191.38,7.5114]
[1761238030570,0.97,191.42,191.38,7.5114]
[1761238030765,0.97,191.42,191.39,2.81]
[1761238031163,1.7437168,191.41,191.39,2.81]
[1761238031366,2.7137168,191.41,191.37,2.81]
[1761238031569,1.7437168,191.41,191.37,2.81]
[1761238032568,1.7437168,191.41,191.37,7.5116]
[1761238032767,2.7137168,191.41,191.37,7.5116]
[1761238033170,1.7437168,191.39,191.37,2.81]
[1761238033364,2.7137168,191.39,191.35,2.81]
[1761238033771,0.97,191.36,191.32,7.5129]
[1761238034171,1.7437168,191.34,191.28,2.81]
[1761238035478,2.7137168,191.34,191.28,2.81]
[1761238036680,46.1537168,191.34,191.28,2.81]
[1761238037071,1.7437168,191.32,191.28,2.81]
[1761238037775,2.7137168,191.3,191.24,7.5147]
[1761238038372,1.7437168,191.28,191.24,7.5147]
[1761238038686,1.7437168,191.28,191.25,2.81]
[1761238039578,1.7437168,191.3,191.25,4.7045]
[1761238039772,1.7437168,191.3,191.23,100.64608371]
[1761238039773,1.7437168,191.3,191.26,2.81]
[1761238039975,1.7437168,191.33,191.26,2.81]
[1761238040172,43.46,191.34,191.26,2.81]
[1761238040377,1.7437168,191.34,191.27,2.81]
[1761238041082,2.7137168,191.34,191.3,2.81]
[1761238041475,0.97,191.37,191.3,4.7032]
[1761238041680,1.7437168,191.36,191.31,2.81]
[1761238042181,1.7437168,191.4,191.34,2.81]
[1761238042577,1.7437168,191.38,191.34,2.81]
[1761238042980,2.7137168,191.38,191.34,2.81]
[1761238043978,2.7137168,191.36,191.33,4.7025]
[1761238044185,1.7437168,191.36,191.3,2.81]
[1761238044877,0.97,191.35,191.26,2.81]
[1761238045082,0.97,191.33,191.26,2.81]
[1761238045276,2.73209737,191.31,191.24,4.7049]
[1761238045476,3.70209737,191.31,191.24,4.7049]
[1761238046077,0.97,191.31,191.24,4.7049]
[1761238046382,0.97,191.31,191.25,4.7045]
[1761238052278,48.1629,191.33,191.28,2.75]
[1761238052279,44.43,191.33,191.28,2.75]
[1761238052479,0.97,191.32,191.23,103.39608371]
[1761238052680,0.97,191.32,191.23,108.10118371]
[1761238053081,2.73209737,191.3,191.24,2.75]
[1761238053485,3.70209737,191.3,191.24,2.75]
[1761238053986,3.70209737,191.3,191.24,7.4547]
[1761238054683,24.88,191.32,191.26,2.75]
[1761238055084,25.85,191.32,191.26,2.75]
[1761238056082,25.85,191.32,191.26,7.4543]
[1761238057590,0.97,191.32,191.26,7.4543]
[1761238057785,2.73209737,191.33,191.28,2.75]
[1761238057984,0.97,191.35,191.28,2.75]
[1761238058193,30.34,191.37,191.28,2.75]
[1761238058387,0.97,191.36,191.28,2.75]
[1761238058983,0.97,191.36,191.3,2.75]
[1761238059183,30.34,191.37,191.3,2.75]
[1761238059584,31.31,191.37,191.3,2.75]
[1761238059783,31.31,191.37,191.31,4.703]
[1761238059994,31.31,191.37,191.32,2.75]
[1761238060384,0.97,191.4,191.32,2.75]
[1761238061384,0.97,191.4,191.28,2.75]
[1761238062994,0.97,191.4,191.31,4.703]
[1761238065000,0.97,191.4,191.32,4.7028]
[1761238065995,4.7014,191.39,191.32,7.4528]
[1761238066190,5.6714,191.39,191.32,7.4528]
[1761238066394,0.97,191.38,191.32,7.4528]
[1761238066699,28.44,191.42,191.32,7.4528]
[1761238066700,0.97,191.42,191.34,2.75]
[1761238067597,0.97,191.42,191.37,7.4516]
[1761238068897,0.97,191.42,191.38,2.75]
[1761238069398,0.97,191.42,191.35,4.7022]
[1761238069399,0.97,191.4,191.33,2.75]
[1761238071102,0.97,191.4,191.33,7.4526]
[1761238071508,4.7014,191.39,191.33,7.4526]
[1761238071806,4.7014,191.39,191.28,2.73209737]
[1761238071807,0.97,191.37,191.28,2.75]
[1761238073002,5.6721,191.36,191.29,7.4536]
[1761238074209,5.6721,191.36,191.3,2.75]
[1761238080213,0.97,191.36,191.31,2.64]
[1761238080514,4.7016,191.38,191.31,2.64]
[1761238081413,5.6716,191.38,191.31,2.64]
[1761238081614,4.7019,191.37,191.31,7.3431]
[1761238081816,0.97,191.36,191.31,7.3431]
[1761238082414,0.97,191.36,191.31,2.64]
[1761238083917,0.97,191.35,191.31,2.64]
[1761238084313,0.97,191.35,191.23,103.37818108]
[1761238084314,0.97,191.35,191.28,7.3438]
[1761238084818,5.6726,191.34,191.28,7.3438]
[1761238085113,0.97,191.33,191.28,7.3438]
[1761238085318,4.7026,191.34,191.29,2.64]
[1761238085515,0.97,191.39,191.26,4.85710897]
[1761238085716,0.97,191.39,191.29,7.49710897]
[1761238085923,0.97,191.39,191.3,2.64]
[1761238086819,0.97,191.39,191.33,7.3425]
[1761238087316,4.7011,191.4,191.34,2.64]
[1761238087612,4.7011,191.4,191.35,2.64]
[1761238087817,8.40269737,191.42,191.35,2.64]
[1761238088009,4.86913043,191.44,191.36,2.64]
[1761238088206,0.97,191.45,191.36,2.64]
[1761238088405,0.97,191.45,191.38,7.3413]
[1761238088619,0.97,191.45,191.39,2.64]
[1761238088821,4.6996,191.46,191.39,2.64]
[1761238089120,5.6696,191.46,191.4,4.71386026]
[1761238089320,0.97,191.45,191.41,4.71386026]
[1761238089507,0.97,191.45,191.42,4.71386026]
[1761238089711,0.97,191.45,191.39,2.64]
[1761238089908,0.97,191.45,191.41,2.64]
[1761238090114,0.97,191.45,191.42,4.71286938]
[1761238090406,0.97,191.45,191.41,2.64]
[1761238090613,0.97,191.45,191.42,4.71130508]
[1761238090814,0.97,191.45,191.43,4.71130508]
[1761238091123,0.97,191.45,191.44,4.7107894]
[1761238091421,0.97,191.45,191.41,2.64]
[1761238091615,31.6,191.47,191.4,4.7009]
[1761238091616,31.6,191.47,191.42,7.34947063]
[1761238091815,32.57,191.47,191.44,2.64]
[1761238092214,31.6,191.47,191.45,4.70685126]
[1761238092420,31.6,191.47,191.46,7.34685126]
[1761238092620,31.6,191.47,191.46,4.70685126]
[1761238093018,31.6,191.47,191.46,7.34685126]
[1761238093615,2.73209737,191.53,191.47,2.64]
[1761238093815,0.97,191.52,191.48,4.70685126]
[1761238094116,2.73209737,191.5,191.44,2.64]
[1761238094315,0.97,191.49,191.45,4.75575533]
[1761238094526,0.97,191.49,191.44,2.64]
[1761238094824,0.97,191.49,191.45,4.75638885]
[1761238095124,0.97,191.49,191.46,4.75638885]
[1761238095419,0.97,191.49,191.41,4.7006]
[1761238095622,3.70209737,191.47,191.42,7.39579587]
[1761238095821,3.70209737,191.47,191.43,4.75579587]
[1761238096017,3.70209737,191.47,191.44,4.75579587]
[1761238096214,3.70209737,191.47,191.42,2.64]
[1761238096415,2.73209737,191.47,191.44,2.64]
[1761238096716,0.97,191.5,191.46,2.64]
[1761238096717,3.70209737,191.5,191.46,2.64]
[1761238096922,0.97,191.49,191.43,2.64]
[1761238097113,0.97,191.49,191.45,2.64]
[1761238097316,5.6684,191.51,191.46,4.75521998]
[1761238097515,49.1284,191.51,191.47,2.64]
[1761238098013,4.6979,191.53,191.49,2.64]
[1761238098317,0.97,191.53,191.49,2.64]
[1761238098923,4.6974,191.55,191.49,2.64]
[1761238099122,47.16209737,191.56,191.49,2.64]
[1761238099326,47.16209737,191.56,191.5,2.64]
[1761238099920,44.43,191.56,191.5,2.64]
[1761238100315,44.43,191.56,191.51,4.74778572]
[1761238100516,44.43,191.56,191.52,2.64]
[1761238101022,0.97,191.55,191.47,10.07129737]
[1761238101221,0.97,191.55,191.48,4.74846523]
[1761238101416,0.97,191.55,191.49,4.74846523]
[1761238101616,0.97,191.55,191.47,7.3392]
[1761238101825,0.97,191.55,191.48,4.74687574]
[1761238102126,0.97,191.55,191.49,4.74687574]
[1761238102325,0.97,191.55,191.48,2.64]
[1761238102525,0.97,191.55,191.49,4.74572031]
[1761238102731,0.97,191.55,191.48,2.64]
[1761238102916,0.97,191.55,191.49,4.74572031]
[1761238103227,0.97,191.54,191.48,2.64]
[1761238103425,0.97,191.54,191.49,4.74426888]
[1761238103617,0.97,191.54,191.47,7.3392]
[1761238103817,0.97,191.54,191.48,4.74426888]
[1761238104123,0.97,191.54,191.5,2.64]
[1761238106423,5.6675,191.55,191.5,2.64]
[1761238106627,0.97,191.52,191.45,2.86]
[1761238106824,1.74574366,191.51,191.47,2.86]
[1761238107822,1.74574366,191.49,191.42,2.86]
[1761238108018,1.74574366,191.47,191.44,2.86]
[1761238108320,1.74574366,191.47,191.45,7.59963417]
[1761238108521,1.74574366,191.47,191.46,4.73963417]
[1761238109529,1.74574366,191.48,191.42,2.87]
[1761238109829,1.74574366,191.48,191.45,2.87]
[1761238110032,1.74574366,191.48,191.46,4.73957724]
[1761238110327,1.74574366,191.48,191.45,2.87]
[1761238110528,1.74574366,191.48,191.47,2.87]
[1761238110928,46.15574366,191.5,191.47,2.87]
[1761238116332,46.15574366,191.5,191.45,7.5697]
[1761238116535,46.15574366,191.5,191.46,2.87]
[1761238121439,46.15574366,191.5,191.47,7.59526092]
[1761238121630,45.18574366,191.5,191.47,2.87]
[1761238121830,0.97,191.49,191.47,2.87]
[1761238122930,1.74574366,191.5,191.47,2.87]
[1761238123132,1.74574366,191.54,191.48,4.72649608]
[1761238123436,24.96,191.53,191.5,2.87]
[1761238123633,15.90464585,191.64,191.52,2.87]
[1761238123634,4.86913043,191.64,191.52,2.87]
[1761238123836,1.74574366,191.59,191.53,7.59767935]
[1761238124036,43.44,191.58,191.54,7.59767935]
[1761238124231,2.71574366,191.57,191.54,2.87]
[1761238124437,2.71574366,191.57,191.5,2.87]
[1761238124640,1.74574366,191.56,191.52,2.87]
[1761238124832,1.74574366,191.56,191.53,7.59472911]
[1761238125031,1.74574366,191.56,191.54,4.72472911]
[1761238125233,1.74574366,191.56,191.53,2.87]
[1761238125432,0.97,191.57,191.54,7.59361834]
[1761238125639,2.71574366,191.57,191.54,2.87]
[1761238127229,0.97,191.54,191.5,4.6984]
[1761238127442,0.97,191.53,191.51,4.72698518]
[1761238127634,0.97,191.53,191.5,4.6984]
[1761238127834,0.97,191.53,191.51,4.72713259]
[1761238128037,0.97,191.53,191.5,7.5684]
[1761238128240,0.97,191.53,191.51,4.72713028]
[1761238128540,43.44,191.54,191.52,4.72874341]
[1761238128736,43.44,191.54,191.51,2.87]
[1761238128935,43.44,191.54,191.52,7.59842586]
[1761238129131,43.44,191.54,191.52,2.87]
[1761238129339,43.44,191.54,191.53,4.72827579]
[1761238131142,43.44,191.54,191.53,7.59827579]
[1761238133444,43.44,191.54,191.53,7.60957942]
[1761238134237,44.41,191.54,191.53,4.73957942]
[1761238134840,43.44,191.54,191.53,7.60957942]
[1761238135436,43.44,191.54,191.53,4.73957942]
[1761238135646,44.41,191.54,191.53,4.73957942]
[1761238136047,43.44,191.54,191.53,4.73957942]
[1761238137846,43.44,191.54,191.53,7.60957942]
[1761238140151,43.44,191.54,191.53,4.73957942]
[1761238141853,44.41,191.54,191.53,4.73957942]
[1761238142756,43.44,191.54,191.53,4.73957942]
[1761238142957,2.71574366,191.57,191.53,7.44957942]
[1761238143154,43.44,191.56,191.54,4.73957942]
[1761238143452,44.41,191.56,191.55,4.73957942]
[1761238144347,44.41,191.56,191.55,7.44957942]
[1761238144348,43.44,191.56,191.55,7.44957942]
[1761238144654,43.44,191.56,191.55,4.73957942]
[1761238144958,44.41,191.56,191.55,4.73957942]
[1761238145158,46.15574366,191.56,191.55,4.73957942]
[1761238145952,0.97,191.55,191.5,4.6984]
[1761238146154,2.71574366,191.53,191.51,4.73811689]
[1761238146351,43.42,191.52,191.5,4.6984]
[1761238146552,44.39,191.52,191.51,4.73810356]
[1761238148476,43.42,191.52,191.51,4.73810356]
[1761238152175,43.42,191.52,191.51,7.44810356]
[1761238152375,1.74574366,191.55,191.52,2.71]
[1761238152676,44.39,191.54,191.53,4.73810356]
[1761238152975,36.65,191.54,191.53,4.73810356]
[1761238153671,0.97,191.53,191.49,4.6985]
[1761238153877,1.74574366,191.5,191.49,4.6985]
[1761238154479,1.74574366,191.5,191.49,7.4085]
[1761238154972,1.74574366,191.52,191.51,7.4082]
[1761238157377,43.42,191.53,191.52,2.71]
[1761238158174,43.42,191.53,191.51,4.6982]
[1761238158378,2.71574366,191.52,191.51,4.6982]
[1761238158882,1.74574366,191.52,191.51,4.6982]
[1761238162686,2.71574366,191.52,191.51,4.6982]
[1761238162985,1.74574366,191.52,191.51,4.6982]
[1761238164586,1.74574366,191.52,191.51,7.4082]
[1761238165287,1.74574366,191.52,191.51,4.6982]
[1761238165478,1.74574366,191.52,191.51,9.45044513]
[1761238166186,2.71574366,191.52,191.51,4.75224513]
[1761238168691,0.97,191.52,191.51,4.75224513]
[1761238169989,46.14729159,191.53,191.51,4.75224513]
[1761238170181,0.98,191.52,191.49,7.4287]
[1761238170382,0.98,191.52,191.5,4.75190598]
[1761238170588,0.98,191.52,191.51,4.75190598]
[1761238175488,0.98,191.5,191.46,2.73]
[1761238175689,47.12729159,191.49,191.46,2.73]
[1761238175889,46.14729159,191.49,191.46,2.73]
[1761238176391,46.14729159,191.49,191.47,2.73]
[1761238179588,43.42,191.49,191.48,2.73]
[1761238186699,43.42,191.49,191.47,4.6992]
[1761238187000,44.4,191.49,191.47,4.6992]
[1761238187301,0.98,191.48,191.47,4.6992]
[1761238187504,0.98,191.48,191.47,9.54539495]
[1761238187704,0.98,191.48,191.47,4.84619495]
[1761238187904,0.98,191.48,191.44,2.73]
[1761238188298,0.98,191.48,191.44,7.4299]
[1761238191099,0.98,191.48,191.4,4.86664525]
[1761238191100,2.72729159,191.46,191.42,4.7005]
[1761238191301,0.98,191.44,191.42,4.7005]
[1761238191496,44.4,191.45,191.42,2.73]
[1761238191696,43.42,191.45,191.42,2.73]
[1761238193006,43.42,191.45,191.43,4.7002]
[1761238193803,0.98,191.44,191.39,2.73]
[1761238194108,0.98,191.42,191.39,2.73]
[1761238194908,2.72729159,191.43,191.4,7.431]
[1761238195109,2.72729159,191.43,191.4,2.73]
[1761238196003,2.72729159,191.43,191.41,7.4307]
[1761238196806,44.4,191.45,191.42,7.4304]
[1761238197012,43.42,191.45,191.43,2.73]
[1761238197206,3.70729159,191.49,191.43,2.73]
[1761238197402,43.42,191.48,191.43,2.73]
[1761238197597,44.4,191.48,191.43,2.73]
[1761238197803,44.4,191.48,191.44,4.70539765]
[1761238198106,2.72729159,191.49,191.46,2.73]
[1761238198306,2.72729159,191.49,191.37,2.72729159]
[1761238198307,46.16729159,191.49,191.48,2.73]
[1761238198507,46.16729159,191.49,191.48,4.70539765]
[1761238198806,47.14729159,191.49,191.48,4.70539765]
[1761238199008,46.16729159,191.49,191.48,4.70539765]
[1761238199208,43.44,191.49,191.48,7.52539765]
[1761238200008,43.44,191.49,191.48,4.70539765]
[1761238200708,47.13729159,191.49,191.48,4.70539765]
[1761238201306,46.16729159,191.49,191.48,4.70539765]
[1761238201507,44.41,191.49,191.48,4.70539765]
[1761238204405,43.44,191.49,191.48,4.70539765]
[1761238204611,43.44,191.49,191.48,7.52539765]
[1761238204812,43.44,191.49,191.48,4.70539765]
[1761238205002,44.41,191.49,191.48,4.70539765]
[1761238205405,43.42,191.51,191.48,4.70539765]
[1761238205605,43.42,191.51,191.49,4.70539765]
[1761238205808,43.42,191.51,191.5,4.70539765]
[1761238206812,43.42,191.51,191.5,7.52539765]
[1761238207311,43.42,191.51,191.5,4.70539765]
[1761238210113,4.87444573,191.57,191.51,2.82]
[1761238210313,4.87444573,191.58,191.53,2.82]
[1761238210513,35.3,191.57,191.55,2.82]
[1761238210721,35.3,191.57,191.56,4.70539765]
[1761238211020,36.27,191.57,191.56,4.70539765]
[1761238212512,36.27,191.57,191.49,2.82]
[1761238213416,35.3,191.57,191.52,4.698]
[1761238213608,0.97,191.56,191.52,4.698]
[1761238215723,0.97,191.56,191.5,4.6985]
[1761238218026,0.97,191.56,191.51,4.6982]
[1761238218218,0.97,191.56,191.52,2.82]
[1761238219020,0.97,191.56,191.52,7.5179]
[1761238221922,0.97,191.56,191.5,4.6985]
[1761238222314,0.97,191.54,191.5,4.6985]
[1761238222525,0.97,191.54,191.48,4.699]
[1761238223220,2.72729159,191.52,191.46,2.82]
[1761238223420,43.42,191.51,191.46,2.82]
[1761238223922,0.97,191.5,191.47,4.6992]
[1761238224422,43.42,191.51,191.48,2.82]
[1761238224619,44.39,191.51,191.48,2.82]
[1761238226622,44.4,191.51,191.44,2.87]
[1761238226824,0.98,191.49,191.44,2.87]
[1761238227627,2.72729159,191.47,191.41,2.87]
[1761238227823,0.98,191.45,191.41,2.87]
[1761238228330,43.42,191.46,191.41,2.87]
[1761238228633,0.98,191.45,191.41,2.87]
[1761238229025,0.98,191.45,191.42,2.84]
[1761238229828,43.42,191.46,191.42,2.84]
[1761238230034,4.6987,191.5,191.42,2.84]
[1761238230225,40.52,191.51,191.46,2.84]
[1761238230831,42.26552034,191.51,191.46,2.84]
[1761238231031,42.26552034,191.51,191.47,2.84]
[1761238231232,0.97,191.5,191.46,4.6995]
[1761238231429,42.26552034,191.51,191.43,1.74552034]
[1761238231430,0.97,191.48,191.43,2.84]
[1761238231627,0.97,191.48,191.45,7.5398]
[1761238231934,1.74552034,191.49,191.45,7.5398]
[1761238232136,2.71552034,191.49,191.45,7.5398]
[1761238232334,0.97,191.49,191.45,7.5398]
[1761238232531,1.74552034,191.48,191.45,7.5398]
[1761238233538,1.74552034,191.46,191.43,2.84]
[1761238233946,2.71552034,191.48,191.43,2.84]
[1761238234141,1.74552034,191.48,191.45,2.84]
[1761238234743,1.74552034,191.48,191.46,2.84]
[1761238236249,1.74552034,191.48,191.43,4.7003]
[1761238236452,2.71552034,191.48,191.44,2.84]
[1761238237549,0.97,191.48,191.44,2.84]
[1761238237762,1.74552034,191.47,191.44,2.84]
[1761238237952,1.74552034,191.45,191.41,4.7007]
[1761238238249,0.97,191.44,191.41,7.5407]
[1761238238641,0.97,191.44,191.37,1.74552034]
[1761238238844,2.71552034,191.43,191.38,2.84]
[1761238239038,2.71552034,191.41,191.38,2.84]
[1761238239239,1.74552034,191.41,191.38,2.84]
[1761238239452,1.74552034,191.43,191.38,2.84]
[1761238240146,1.74552034,191.43,191.38,4.7015]
[1761238240351,1.74552034,191.43,191.39,2.84]
[1761238241049,0.97,191.42,191.39,2.84]
[1761238241244,0.97,191.42,191.38,4.7015]
[1761238241552,0.97,191.42,191.36,2.84]
[1761238241553,4.6993,191.48,191.4,2.84]
[1761238241746,1.74552034,191.46,191.4,2.84]
[1761238242953,43.42,191.49,191.42,2.84]
[1761238244047,43.42,191.49,191.45,2.84]
[1761238244252,44.39,191.49,191.45,2.84]
[1761238244645,44.39,191.49,191.45,7.5397]
[1761238244945,43.42,191.49,191.46,2.84]
[1761238245551,43.42,191.49,191.47,4.74956445]
[1761238245753,43.42,191.49,191.46,2.84]
[1761238245951,43.42,191.49,191.47,4.74956392]
[1761238246251,43.42,191.49,191.46,2.84]
[1761238246452,43.42,191.49,191.47,4.74884382]
[1761238246655,46.13552034,191.49,191.48,4.74884382]
[1761238246948,46.13552034,191.49,191.43,4.7003]
[1761238247139,0.97,191.48,191.44,7.58916828]
[1761238247342,0.97,191.48,191.45,4.74916828]
[1761238247543,0.97,191.48,191.46,4.74916828]
[1761238247739,0.97,191.48,191.43,7.5403]
[1761238247946,0.97,191.48,191.44,4.7493153]
[1761238248144,0.97,191.48,191.45,4.7493153]
[1761238248349,0.97,191.48,191.46,4.7493153]
[1761238248545,0.97,191.48,191.43,4.7003]
[1761238248744,0.97,191.48,191.44,7.58913465]
[1761238248951,0.97,191.48,191.45,4.74913465]
[1761238249150,0.97,191.48,191.46,4.74913465]
[1761238249347,0.97,191.48,191.44,2.84]
[1761238249549,0.97,191.48,191.45,4.74894062]
[1761238249749,0.97,191.48,191.46,4.74894062]
[1761238249950,0.97,191.48,191.44,2.84]
[1761238250248,0.97,191.48,191.45,4.74919318]
[1761238250449,0.97,191.48,191.46,4.74919318]
[1761238250750,45.16552034,191.49,191.45,2.84]
[1761238250942,45.16552034,191.49,191.47,2.84]
[1761238251144,1.74552034,191.49,191.47,2.84]
[1761238251356,43.42,191.49,191.47,2.84]
[1761238251857,44.39,191.49,191.44,2.84]
[1761238252053,44.39,191.49,191.45,7.5881639]
[1761238252242,44.39,191.49,191.46,4.7481639]
[1761238252443,44.39,191.49,191.47,4.7481639]
[1761238252649,44.39,191.49,191.46,2.84]
[1761238252850,44.39,191.49,191.47,4.7492443]
[1761238253049,44.39,191.49,191.46,2.84]
[1761238253250,44.39,191.49,191.47,4.74945865]
[1761238253448,44.39,191.49,191.48,4.74872803]
[1761238254343,43.42,191.49,191.48,4.74872803]
[1761238255453,44.39,191.49,191.48,4.74872803]
[1761238255650,46.13552034,191.49,191.48,4.74872803]
[1761238258859,0.98,191.48,191.44,7.35]
[1761238259058,1.74552034,191.47,191.45,4.7573173]
[1761238259257,1.74552034,191.47,191.46,4.7573173]
[1761238260457,0.98,191.48,191.46,4.7573173]
[1761238260757,45.16552034,191.49,191.48,2.65]
[1761238260954,43.42,191.49,191.48,7.4073173]
[1761238262453,6.51404585,191.56,191.49,2.65]
[1761238262454,4.87444573,191.56,191.49,2.65]
[1761238262659,1.74552034,191.54,191.51,2.65]
[1761238262859,1.74552034,191.54,191.52,7.4073173]
[1761238263062,1.74552034,191.54,191.53,4.7573173]
[1761238263465,2.72552034,191.54,191.53,4.7573173]
[1761238263760,1.74552034,191.54,191.53,4.7573173]
[1761238268868,43.42,191.55,191.54,2.65]
[1761238269068,43.42,191.55,191.54,7.4073173]
[1761238270161,43.42,191.55,191.54,4.7573173]
[1761238270564,45.16552034,191.55,191.54,4.7573173]
[1761238270964,43.42,191.55,191.54,7.4073173]
[1761238273065,43.42,191.55,191.54,2.65]
[1761238273365,43.42,191.55,191.54,7.40520034]
[1761238274667,1.74552034,191.59,191.54,7.40520034]
[1761238274862,1.74552034,191.59,191.56,2.65]
[1761238275058,1.74552034,191.59,191.57,7.40520034]
[1761238275271,43.4,191.6,191.58,7.40520034]
[1761238275574,1.74552034,191.59,191.58,2.65]
[1761238275768,1.74552034,191.59,191.58,7.40190666]
[1761238276072,1.74552034,191.59,191.58,4.75190666]
[1761238276267,1.74552034,191.59,191.58,4.75222233]
[1761238276469,1.74552034,191.59,191.56,4.697]
[1761238276772,43.4,191.6,191.56,4.697]
[1761238276773,43.4,191.6,191.57,4.7522338]
[1761238277071,1.74552034,191.58,191.55,2.65]
[1761238277270,1.74552034,191.58,191.56,7.40202213]
[1761238277466,43.4,191.6,191.57,4.75202213]
[1761238277668,2.72552034,191.58,191.55,4.6973]
[1761238277875,43.4,191.6,191.53,2.65]
[1761238277876,2.72552034,191.56,191.53,2.65]
[1761238278066,2.72552034,191.56,191.54,4.75256988]
[1761238278363,1.74552034,191.56,191.55,4.75256988]
[1761238279367,1.74552034,191.56,191.54,2.65]
[1761238279565,1.74552034,191.56,191.55,4.75158322]
[1761238281065,43.4,191.6,191.56,2.65]
[1761238281266,45.14552034,191.6,191.56,2.65]
[1761238281466,46.12552034,191.6,191.57,4.74875136]
[1761238281774,46.12552034,191.6,191.56,2.65]
[1761238282073,46.12552034,191.6,191.57,4.74843783]
[1761238282269,1.74552034,191.58,191.48,4.86306693]
[1761238282464,1.74552034,191.56,191.5,2.65]
[1761238282665,1.74552034,191.56,191.52,2.65]
[1761238282969,7.42272135,191.68,191.52,2.65]
[1761238282970,1.74552034,191.61,191.54,2.65]
[1761238283271,1.74552034,191.64,191.57,2.65]
[1761238283569,1.74552034,191.64,191.59,2.65]
[1761238283773,1.74552034,191.66,191.62,2.65]
[1761238283974,1.74552034,191.72,191.65,2.65]
[1761238284172,1.74552034,191.7,191.66,4.74477904]
[1761238284364,43.4,191.73,191.61,2.65]
[1761238284365,1.74552034,191.68,191.61,2.65]
[1761238284577,0.98,191.69,191.6,1.74552034]
[1761238284578,1.74552034,191.64,191.62,4.7339937]
[1761238284772,1.74552034,191.64,191.63,4.7339937]
[1761238285474,1.74552034,191.66,191.64,2.65]
[1761238287176,1.74552034,191.72,191.66,2.85]
[1761238287383,1.74552034,191.72,191.68,2.85]
[1761238287575,1.74552034,191.72,191.7,2.85]
[1761238287869,0.97,191.77,191.7,2.85]
[1761238288079,1.74552034,191.73,191.7,2.85]
[1761238289368,1.74552034,191.73,191.69,4.6938]
[1761238289369,0.97,191.72,191.66,2.68]
[1761238289573,1.74552034,191.71,191.68,2.68]
[1761238290772,0.97,191.76,191.68,2.68]
[1761238290773,2.72141457,191.73,191.68,2.68]
[1761238290973,2.72141457,191.73,191.69,2.68]
[1761238294478,2.72141457,191.73,191.68,4.694]
[1761238294479,0.97,191.72,191.66,4.6947]
[1761238295178,0.97,191.72,191.66,7.3747]
[1761238296175,3.69141457,191.72,191.67,7.3743]
[1761238296776,3.69141457,191.72,191.67,4.6943]
[1761238296976,0.97,191.75,191.68,2.68]
[1761238297183,2.72141457,191.72,191.68,2.68]
[1761238297778,3.69141457,191.72,191.68,2.68]
[1761238297977,2.72141457,191.72,191.69,2.68]
[1761238301483,0.97,191.71,191.64,2.68]
[1761238301682,2.72141457,191.69,191.64,2.68]